[Event "2nd Hersonissos Open 2018"]
[Site "Hersonissos"]
[Date "2018.06.20"]
[Round "5"]
[White "Haverkamp, Klaus"]
[Black "Lobersli, Henrik Oie"]
[Result "1/2-1/2"]
[ECO "C55"]
[WhiteElo "1921"]
[BlackElo "2134"]
[Annotator "NA"]
[PlyCount "47"]
[EventDate "2018.06.16"]
[EventType "swiss"]
[EventCountry "GRE"]
[SourceTitle "playchess.com"]
[Source "ChessBase"]
[SourceQuality "1"]
[TimeControl "5400+30"]

1. e4 {[%emt 0:01:54]} e5 {[%emt 0:00:14]} 2. Nf3 {[%emt 0:00:41]} Nc6 {[%emt 0:00:30]} 3. Bc4 {[%emt 0:01:15]} Nf6 {[%emt 0:00:37]} 4. d3 {[%emt 0:03:12]} Be7 {[%emt 0:01:02]} 5. Nc3 {[%emt 0:03:04]} d6 {[%emt 0:01:53]} 6. h3 {[%emt 0:02:05]} Be6 {[%emt 0:02:24]} 7. Bb3 {[%emt 0:04:20]} O-O {[%emt 0:04:22]} 8. Bg5 {[%emt 0:07:01]} Nd7 {[%emt 0:08:32]} 9. Bxe7 {[%emt 0:04:51]} Nxe7 {[%emt 0:09:05]} 10. d4 {[%emt 0:07:34]} Bxb3 {[%emt 0:01:21]} 11. axb3 {[%emt 0:00:09]} Ng6 {[%emt 0:01:08]} 12. dxe5 {[%emt 0:05:24]} dxe5 {[%emt 0:03:21]} 13. O-O {[%emt 0:04:33]} c6 {[%emt 0:00:36]} 14. Qd6 {[%emt 0:07:36]} Nb6 {[%emt 0:03:42]} 15. Rfd1 {[%emt 0:02:17]} a6 {[%emt 0:01:07]} 16. Na4 {[%emt 0:07:36]} Nxa4 {[%emt 0:05:35]} 17. bxa4 {[%emt 0:00:27]} Qb6 {[%emt 0:00:44]} 18. Nxe5 {[%emt 0:06:35]} Rfd8 {[%emt 0:04:27]} 19. Nc4 {[%emt 0:01:16]} Rxd6 {[%emt 0:03:35]} 20. Nxb6 {[%emt 0:00:24]} Rad8 {[%emt 0:00:03]} 21. Re1 {[%emt 0:04:50]} Rd2 {[%emt 0:13:16]} 22. Rac1 {[%emt 0:00:24]} Ne5 {[%emt 0:00:06]} 23. Kf1 {[%emt 0:05:42]} g5 {[%emt 0:03:12]} 24. b3 {[%emt 0:02:08]} 1/2-1/2

[Event "2nd Hersonissos Open 2018"]
[Site "Hersonissos"]
[Date "2018.06.20"]
[Round "5"]
[White "Kadianis, Georgios"]
[Black "Angermuende, Dirk"]
[Result "1-0"]
[ECO "C10"]
[WhiteElo "1917"]
[BlackElo "1966"]
[Annotator "NA"]
[PlyCount "193"]
[EventDate "2018.06.16"]
[EventType "swiss"]
[EventCountry "GRE"]
[SourceTitle "playchess.com"]
[Source "ChessBase"]
[SourceQuality "1"]
[TimeControl "5400+30"]

1. e4 {[%emt 0:00:00]} e6 {[%emt 0:00:07]} 2. d4 {[%emt 0:00:00]} d5 {[%emt 0:00:05]} 3. Nc3 {[%emt 0:00:00]} dxe4 {[%emt 0:00:14]} 4. Nxe4 {[%emt 0:00:00]} Bd7 {[%emt 0:00:05]} 5. Bd3 {[%emt 0:00:15]} Bc6 {[%emt 0:00:10]} 6. Nf3 {[%emt 0:00:23]} Nd7 {[%emt 0:00:06]} 7. Qe2 {[%emt 0:00:58]} Ngf6 {[%emt 0:00:15]} 8. Bd2 {[%emt 0:01:12]} Be7 {[%emt 0:01:08] C10: French with 3 Nc3: Unusual Black 3rd moves and 3...dxe4} 9. O-O-O {[%emt 0:00:31]} Bxe4 10. Bxe4 {[%emt 0:00:08]} Nxe4 {[%emt 0:02:51]} 11. Qxe4 {[%emt 0:00:05]} c6 {[%emt 0:00:08]} 12. Kb1 {[%emt 0:01:32]} O-O {[%emt 0:01:02]} 13. Qe2 $146 {[%emt 0:06:34]} ({Predecessor:} 13. c4 Re8 14. Qe2 a5 15. g4 Bb4 16. Be3 a4 17. d5 exd5 18. cxd5 Qf6 19. dxc6 {½-½ (19) Palac,M (2599)-Kunin,V (2494) Schwarzach 2012}) 13... Qb6 {[%emt 0:02:52]} 14. g4 {[%emt 0:02:13]} Rfd8 {[%emt 0:01:42]} 15. g5 {[%emt 0:03:31]} c5 {[%emt 0:00:31]} 16. d5 {[%emt 0:03:07]} Nf8 {[%emt 0:01:35]} 17. c4 {[%emt 0:09:03]} exd5 {[%emt 0:00:22]} 18. cxd5 {[%emt 0:01:37]} Bd6 {[%emt 0:02:39]} 19. Rhe1 {[%emt 0:03:52]} Qc7 {[%emt 0:02:09]} 20. h4 {[%emt 0:05:10]} Qd7 {[%emt 0:00:09]} 21. Qd3 {[%emt 0:07:09]} Re8 {[%emt 0:01:52]} 22. h5 {[%emt 0:15:47]} c4 {[%emt 0:24:46]} 23. Qc3 {[%emt 0:05:02]} Qf5+ {[%emt 0:01:44]} 24. Ka1 {[%emt 0:00:30]} Nd7 {[%emt 0:03:48]} 25. g6 {[%emt 0:13:08]} fxg6 {[%emt 0:04:23]} 26. hxg6 {[%emt 0:00:08]} h6 {[%emt 0:00:24]} 27. Rh1 {[%emt 0:07:26]} Ne5 {[%emt 0:10:56]} 28. Nh4 {[%emt 0:06:01]} Qd7 {[%emt 0:05:36]} 29. f4 {[%emt 0:02:55]} Nd3 {[%emt 0:01:28]} 30. Qxc4 {[%emt 0:01:03]} Nf2 {[%emt 0:00:17]} 31. Nf3 {[%emt 0:01:55]} Nxd1 {[%emt 0:01:00]} 32. Rxd1 {[%emt 0:00:02]} Qf5 {[%emt 0:01:54]} 33. Ne5 {[%emt 0:01:18]} Rac8 {[%emt 0:02:59]} 34. Qb3 {[%emt 0:02:32]} Qc2 {[%emt 0:12:35]} 35. Qxc2 {[%emt 0:00:15]} Rxc2 {[%emt 0:00:07]} 36. Kb1 {[%emt 0:00:02]} Rc7 {[%emt 0:04:27]} 37. Nf7 {[%emt 0:00:30]} Rxf7 {[%emt 0:02:13]} 38. gxf7+ {[%emt 0:00:06]} Kxf7 {[%emt 0:00:06]} 39. Kc2 {[%emt 0:02:13]} h5 {[%emt 0:01:48]} 40. Rh1 {[%emt 0:00:00]} g6 {[%emt 0:00:00]} 41. Kd3 {[%emt 0:00:00]} Kf6 {[%emt 0:00:00]} 42. Rg1 {[%emt 0:00:00]} Re7 {[%emt 0:00:00]} 43. Bc3+ {[%emt 0:00:00]} Kf7 {[%emt 0:00:00]} 44. f5 {[%emt 0:00:00]} gxf5 {[%emt 0:00:00]} 45. Rg5 {[%emt 0:00:00]} h4 {[%emt 0:00:00]} 46. Rxf5+ {[%emt 0:00:00]} Ke8 {[%emt 0:00:00]} 47. Rh5 {[%emt 0:00:00]} Bg3 {[%emt 0:00:00]} 48. Bf6 {[%emt 0:00:00]} Rf7 {[%emt 0:00:00]} 49. Bxh4 {[%emt 0:01:18]} Bxh4 {[%emt 0:00:00]} 50. Rxh4 {[%emt 0:00:04]} Kd7 {[%emt 0:00:00]} 51. b4 {[%emt 0:02:00]} a6 {[%emt 0:00:00]} 52. a4 {[%emt 0:01:20]} Rg7 {[%emt 0:00:00]} 53. Kd4 {[%emt 0:00:34]} Rg6 {[%emt 0:00:00]} 54. a5 {[%emt 0:01:56]} Kd6 {[%emt 0:00:00]} 55. Re4 {[%emt 0:00:15]} Rh6 {[%emt 0:00:00]} 56. Rg4 {[%emt 0:00:07]} Rf6 {[%emt 0:00:00]} 57. Kc4 {[%emt 0:01:09]} Rh6 {[%emt 0:00:00]} 58. Rg7 {[%emt 0:00:49]} Rh4+ {[%emt 0:00:00]} 59. Kb3 {[%emt 0:00:05]} Kxd5 {[%emt 0:00:08]} 60. Rxb7 {[%emt 0:00:05]} Rh3+ {[%emt 0:00:08]} 61. Ka4 {[%emt 0:01:27]} Rh1 {[%emt 0:00:51]} 62. Rb6 {[%emt 0:00:31]} Ra1+ {[%emt 0:01:22]} 63. Kb3 {[%emt 0:00:09]} Rb1+ {[%emt 0:00:16]} 64. Kc2 {[%emt 0:00:20]} Rh1 {[%emt 0:01:07]} 65. Kb3 {[%emt 0:01:01]} Rb1+ {[%emt 0:00:09]} 66. Ka2 {[%emt 0:00:54]} Rh1 {[%emt 0:00:19]} 67. Rxa6 {[%emt 0:00:09]} Kc4 {[%emt 0:00:29]} 68. Rb6 {[%emt 0:00:41]} Rh2+ {[%emt 0:03:14]} 69. Ka3 {[%emt 0:00:16]} Rh1 {[%emt 0:00:20]} 70. Rc6+ {[%emt 0:00:28]} Kb5 {[%emt 0:00:25]} 71. Rc5+ {[%emt 0:00:04]} Ka6 {[%emt 0:00:05]} 72. Kb3 {[%emt 0:00:24]} Rb1+ {[%emt 0:00:36]} 73. Kc3 {[%emt 0:00:52]} Rc1+ {[%emt 0:00:23]} 74. Kd4 {[%emt 0:00:11]} Rd1+ {[%emt 0:00:06]} 75. Kc4 {[%emt 0:00:10]} Rd6 {[%emt 0:01:28]} 76. Rc8 {[%emt 0:01:20]} Kb7 {[%emt 0:03:46]} 77. Kc5 {[%emt 0:01:01]} Rh6 {[%emt 0:01:02]} 78. Rd8 {[%emt 0:00:11]} Rc6+ {[%emt 0:04:55]} 79. Kb5 {[%emt 0:00:33]} Rc7 {[%emt 0:00:15]} 80. Rd5 {[%emt 0:00:21]} Rh7 {[%emt 0:00:30]} 81. a6+ {[%emt 0:00:40]} Ka7 {[%emt 0:00:10]} 82. Ka5 {[%emt 0:00:20]} Rh1 {[%emt 0:01:23]} 83. Rd7+ {[%emt 0:00:05]} Kb8 {[%emt 0:02:32]} 84. b5 {[%emt 0:00:11]} Rh5 {[%emt 0:03:51]} 85. Rg7 {[%emt 0:00:33]} Rh8 {[%emt 0:00:31]} 86. Rb7+ {[%emt 0:00:50]} Ka8 {[%emt 0:00:11]} 87. Rc7 {[%emt 0:00:37]} Rg8 {[%emt 0:01:09]} 88. b6 {[%emt 0:00:54]} Rg5+ {[%emt 0:01:24]} 89. Kb4 {[%emt 0:00:06]} Rg8 {[%emt 0:00:27]} 90. Kb5 {[%emt 0:00:14]} Rg5+ {[%emt 0:00:13]} 91. Rc5 {[%emt 0:00:06]} Rg8 {[%emt 0:00:16]} 92. b7+ {[%emt 0:01:47]} Ka7 {[%emt 0:00:41]} 93. Rc8 {[%emt 0:00:12]} Rg5+ {[%emt 0:00:04]} 94. Kc4 {[%emt 0:00:33]} Rg4+ {[%emt 0:00:09]} 95. Kd3 {[%emt 0:00:32]} Rg3+ {[%emt 0:01:03]} 96. Ke2 {[%emt 0:00:10]} Rg2+ {[%emt 0:00:13]} 97. Kf1 {[%emt 0:00:10]} 1-0

[Event "2nd Hersonissos Open 2018"]
[Site "Hersonissos"]
[Date "2018.06.20"]
[Round "5"]
[White "Pliev, Vladimir"]
[Black "Aggeletos, Marios"]
[Result "1-0"]
[ECO "A46"]
[WhiteElo "1909"]
[BlackElo "1769"]
[Annotator "NA"]
[PlyCount "75"]
[EventDate "2018.06.16"]
[EventType "swiss"]
[EventCountry "GRE"]
[SourceTitle "playchess.com"]
[Source "ChessBase"]
[SourceQuality "1"]
[TimeControl "5400+30"]

1. d4 {[%emt 0:00:00]} Nf6 {[%emt 0:00:07]} 2. Nf3 {[%emt 0:00:00]} e6 {[%emt 0:00:08]} 3. e3 {[%emt 0:00:00]} d5 {[%emt 0:00:14]} 4. b3 {[%emt 0:00:00]} Bd6 {[%emt 0:01:03]} 5. Bb2 {[%emt 0:00:01]} O-O {[%emt 0:00:16]} 6. Bd3 {[%emt 0:00:17]} Ne4 {[%emt 0:02:12]} 7. Nbd2 {[%emt 0:00:32]} f5 {[%emt 0:00:10]} 8. O-O {[%emt 0:00:18]} Nd7 {[%emt 0:00:30]} 9. c4 {[%emt 0:00:49]} c6 {[%emt 0:01:27]} 10. Ne5 {[%emt 0:00:54]} Bxe5 {[%emt 0:08:10]} 11. dxe5 {[%emt 0:00:08]} b6 {[%emt 0:01:56]} 12. Rc1 {[%emt 0:00:40]} Bb7 {[%emt 0:00:34]} 13. f4 {[%emt 0:06:50]} Nxd2 {[%emt 0:04:09]} 14. Qxd2 {[%emt 0:00:09]} Nc5 {[%emt 0:01:15]} 15. Rfd1 {[%emt 0:00:42]} Nxd3 {[%emt 0:01:23]} 16. Qxd3 {[%emt 0:00:06]} c5 {[%emt 0:00:22]} 17. Qc2 {[%emt 0:03:54]} g5 {[%emt 0:10:50]} 18. cxd5 {[%emt 0:07:59]} Bxd5 {[%emt 0:00:49]} 19. Rd2 {[%emt 0:01:47]} gxf4 {[%emt 0:04:40]} 20. exf4 {[%emt 0:00:11]} Qe7 {[%emt 0:02:20]} 21. Qd1 {[%emt 0:01:09]} Rad8 {[%emt 0:00:29]} 22. Qe1 {[%emt 0:02:02]} Rf7 {[%emt 0:02:06]} 23. Rcd1 {[%emt 0:00:29]} Rg7 {[%emt 0:01:15]} 24. Qe3 {[%emt 0:06:18]} Qh4 {[%emt 0:05:57]} 25. Rf1 {[%emt 0:01:18]} Qg4 {[%emt 0:04:00]} 26. Rff2 {[%emt 0:06:48]} Kh8 {[%emt 0:08:00]} 27. Bc3 {[%emt 0:05:10]} a5 {[%emt 0:01:53]} 28. a3 {[%emt 0:02:31]} Rc8 {[%emt 0:12:51]} 29. Bb2 {[%emt 0:05:39]} Rd7 {[%emt 0:01:38]} 30. Qe2 {[%emt 0:02:32]} Qxe2 {[%emt 0:00:20]} 31. Rfxe2 {[%emt 0:00:07]} Rcd8 {[%emt 0:00:08]} 32. Re3 {[%emt 0:00:35]} Be4 {[%emt 0:02:18]} 33. Rd6 {[%emt 0:00:42]} Kg8 {[%emt 0:01:21]} 34. Rxe6 {[%emt 0:01:21]} Rd2 {[%emt 0:01:02]} 35. Rg3+ {[%emt 0:00:58]} Kh8 {[%emt 0:01:04]} 36. Bc3 {[%emt 0:00:25]} Rc2 {[%emt 0:04:40]} 37. Rd6 {[%emt 0:01:47]} Rg8 {[%emt 0:02:29]} 38. e6+ {[%emt 0:01:19]} 1-0

[Event "2nd Hersonissos Open 2018"]
[Site "Hersonissos"]
[Date "2018.06.20"]
[Round "5"]
[White "Brokalakis - Gounaris, Christos"]
[Black "Magoulianos, Nikolaos"]
[Result "1-0"]
[ECO "D35"]
[WhiteElo "1851"]
[BlackElo "1434"]
[Annotator "NA"]
[PlyCount "49"]
[EventDate "2018.06.16"]
[EventType "swiss"]
[EventCountry "GRE"]
[SourceTitle "playchess.com"]
[Source "ChessBase"]
[SourceQuality "1"]
[TimeControl "5400+30"]

1. d4 {[%emt 0:00:00]} d5 {[%emt 0:04:22]} 2. c4 {[%emt 0:00:00]} e6 {[%emt 0:00:19]} 3. Nc3 Nf6 {[%emt 0:00:05]} 4. cxd5 {[%emt 0:00:00]} exd5 {[%emt 0:00:11]} 5. Bg5 {[%emt 0:00:11]} Be7 6. e3 c6 {[%emt 0:00:38]} 7. Qc2 {[%emt 0:00:19]} Nbd7 {[%emt 0:00:10]} 8. Bd3 {[%emt 0:00:49]} O-O {[%emt 0:00:09]} 9. Nf3 {[%emt 0:01:26]} Re8 {[%emt 0:00:27]} 10. O-O {[%emt 0:00:21]} Nf8 {[%emt 0:01:01]} 11. Rab1 {[%emt 0:05:35]} a5 {[%emt 0:01:28]} 12. a3 {[%emt 0:01:02]} Ne4 {[%emt 0:03:05]} 13. Bf4 {[%emt 0:05:15]} Bf5 {[%emt 0:04:46]} 14. Bxe4 {[%emt 0:08:48]} dxe4 {[%emt 0:02:11]} 15. Nd2 {[%emt 0:00:54]} Bg5 {[%emt 0:04:08]} 16. Bxg5 {[%emt 0:03:32]} Qxg5 {[%emt 0:00:08]} 17. Ndxe4 {[%emt 0:01:44]} Qg6 {[%emt 0:00:29]} 18. f3 {[%emt 0:00:05]} Nd7 {[%emt 0:03:26]} 19. Rbe1 {[%emt 0:04:44]} Bxe4 {[%emt 0:03:49]} 20. Nxe4 {[%emt 0:02:18]} Nf6 {[%emt 0:00:52]} 21. Nxf6+ {[%emt 0:00:26]} Qxf6 {[%emt 0:00:16]} 22. Qc3 {[%emt 0:00:37]} Re6 {[%emt 0:01:27]} 23. Rf2 {[%emt 0:00:24]} Rae8 {[%emt 0:01:07]} 24. Qxa5 {[%emt 0:03:03]} Rxe3 {[%emt 0:00:46]} 25. Rxe3 {[%emt 0:00:11]} 1-0

[Event "2nd Hersonissos Open 2018"]
[Site "Hersonissos"]
[Date "2018.06.20"]
[Round "5"]
[White "Parker, Keith"]
[Black "Lirindzakis, Timotheos"]
[Result "0-1"]
[ECO "A45"]
[WhiteElo "1846"]
[BlackElo "2163"]
[Annotator "NA"]
[PlyCount "86"]
[EventDate "2018.06.16"]
[EventType "swiss"]
[EventCountry "GRE"]
[SourceTitle "playchess.com"]
[Source "ChessBase"]
[SourceQuality "1"]
[TimeControl "5400+30"]

1. d4 {[%emt 0:00:13]} Nf6 {[%emt 0:00:07]} 2. Bf4 {[%emt 0:00:29]} d5 {[%emt 0:01:48]} 3. e3 {[%emt 0:00:07]} e6 {[%emt 0:00:12]} 4. Nf3 {[%emt 0:00:56]} Bd6 {[%emt 0:00:33]} 5. Bg3 {[%emt 0:00:57]} O-O {[%emt 0:00:34]} 6. Nbd2 {[%emt 0:02:00]} b6 {[%emt 0:00:52]} 7. Bd3 {[%emt 0:05:27]} Bb7 {[%emt 0:00:37]} 8. Ne5 {[%emt 0:01:55]} c5 {[%emt 0:03:50]} 9. c3 {[%emt 0:00:09]} Nc6 {[%emt 0:00:37]} 10. Ndf3 {[%emt 0:03:28]} Ne7 {[%emt 0:03:18]} 11. Bh4 {[%emt 0:08:57]} Ne4 {[%emt 0:10:04]} 12. Nd2 {[%emt 0:14:39]} f6 {[%emt 0:04:14]} 13. Qg4 {[%emt 0:10:59]} Nf5 {[%emt 0:13:34]} 14. Bxe4 {[%emt 0:03:54]} dxe4 {[%emt 0:04:09]} 15. Nec4 {[%emt 0:02:33]} Be7 {[%emt 0:06:09]} 16. Bg3 {[%emt 0:02:25]} b5 {[%emt 0:05:43]} 17. Na3 {[%emt 0:00:51]} cxd4 {[%emt 0:01:20]} 18. cxd4 {[%emt 0:02:06]} Qd5 {[%emt 0:04:24]} 19. O-O {[%emt 0:03:53]} Rac8 {[%emt 0:04:47]} 20. Qd1 {[%emt 0:04:50]} b4 {[%emt 0:04:01]} 21. Nac4 {[%emt 0:06:22]} Rxc4 {[%emt 0:09:55]} 22. Nxc4 {[%emt 0:00:12]} Qxc4 {[%emt 0:00:03]} 23. Qd2 {[%emt 0:03:30]} Qd5 {[%emt 0:02:36]} 24. Rfc1 {[%emt 0:01:11]} Nxg3 {[%emt 0:01:51]} 25. hxg3 {[%emt 0:00:14]} Bd6 {[%emt 0:00:12]} 26. Qc2 {[%emt 0:03:51]} Qb5 {[%emt 0:04:30]} 27. b3 {[%emt 0:04:05]} Bd5 {[%emt 0:03:27]} 28. Qb2 {[%emt 0:01:21]} a5 {[%emt 0:01:44]} 29. Rc2 {[%emt 0:01:41]} a4 {[%emt 0:00:19]} 30. Rac1 {[%emt 0:02:15]} axb3 {[%emt 0:01:04]} 31. axb3 {[%emt 0:00:01]} Qb7 {[%emt 0:01:48]} 32. Ra1 {[%emt 0:00:56]} Ra8 {[%emt 0:02:18]} 33. Rxa8+ {[%emt 0:00:47]} Qxa8 {[%emt 0:00:01]} 34. Qc1 {[%emt 0:01:12]} Qa3 {[%emt 0:01:13]} 35. Rc8+ {[%emt 0:03:41]} Kf7 {[%emt 0:00:07]} 36. Qd1 {[%emt 0:01:08]} g6 {[%emt 0:01:30]} 37. Rh8 {[%emt 0:01:11]} Kg7 {[%emt 0:01:20]} 38. Rd8 {[%emt 0:00:09]} Qa6 {[%emt 0:01:38]} 39. Rd7+ {[%emt 0:01:42]} Kg8 {[%emt 0:00:22]} 40. Qg4 {[%emt 0:00:00]} Qc6 {[%emt 0:00:00]} 41. Rd8+ {[%emt 0:00:00]} Kg7 {[%emt 0:00:00]} 42. Qd1 {[%emt 0:00:00]} Qc7 {[%emt 0:00:00]} 43. Re8 {[%emt 0:00:00]} Qd7 {[%emt 0:00:00]} 0-1

[Event "2nd Hersonissos Open 2018"]
[Site "Hersonissos"]
[Date "2018.06.20"]
[Round "5"]
[White "Iminov, Bachtiar"]
[Black "Dagkonaki, Aspasia"]
[Result "1-0"]
[ECO "A06"]
[WhiteElo "1842"]
[BlackElo "1538"]
[Annotator "NA"]
[PlyCount "91"]
[EventDate "2018.06.16"]
[EventType "swiss"]
[EventCountry "GRE"]
[SourceTitle "playchess.com"]
[Source "ChessBase"]
[SourceQuality "1"]
[TimeControl "5400+30"]

1. Nf3 {[%emt 0:00:29]} d5 {[%emt 0:00:12]} 2. c4 {[%emt 0:00:04]} e6 {[%emt 0:00:31]} 3. b3 {[%emt 0:00:25]} Nf6 {[%emt 0:00:16]} 4. g3 {[%emt 0:00:32]} Be7 {[%emt 0:02:13]} 5. Bg2 {[%emt 0:00:50]} O-O {[%emt 0:00:34]} 6. Bb2 {[%emt 0:00:14]} c5 {[%emt 0:01:01]} 7. O-O {[%emt 0:00:15]} Nc6 {[%emt 0:01:30]} 8. e3 {[%emt 0:00:20]} Qc7 {[%emt 0:01:24]} 9. Qe2 {[%emt 0:01:05]} b6 {[%emt 0:00:57]} 10. Rd1 {[%emt 0:00:58]} Bb7 {[%emt 0:00:36]} 11. Nc3 {[%emt 0:01:19]} Rfd8 {[%emt 0:01:02]} 12. Rac1 {[%emt 0:00:55]} Rac8 {[%emt 0:02:42]} 13. d4 dxc4 {[%emt 0:06:21]} 14. bxc4 {[%emt 0:03:17]} cxd4 {[%emt 0:01:45]} 15. exd4 {[%emt 0:00:39]} Na5 {[%emt 0:11:55]} 16. Nb5 {[%emt 0:05:29]} Qb8 {[%emt 0:06:20]} 17. d5 {[%emt 0:01:44]} Kf8 {[%emt 0:02:05]} 18. Be5 {[%emt 0:00:51]} Qa8 {[%emt 0:04:37]} 19. Nc7 {[%emt 0:00:15]} Rxc7 {[%emt 0:00:05]} 20. Bxc7 {[%emt 0:00:06]} Rc8 {[%emt 0:00:05]} 21. d6 {[%emt 0:06:54]} Bd8 {[%emt 0:01:36]} 22. Bxd8 {[%emt 0:00:19]} Rxd8 {[%emt 0:00:06]} 23. Ne1 {[%emt 0:00:46]} Bxg2 {[%emt 0:00:34]} 24. Nxg2 {[%emt 0:00:02]} Qc6 {[%emt 0:02:20]} 25. Ne3 {[%emt 0:03:34]} Rxd6 {[%emt 0:01:12]} 26. Rxd6 {[%emt 0:00:10]} Qxd6 {[%emt 0:00:05]} 27. Rd1 {[%emt 0:00:20]} Qc7 {[%emt 0:00:53]} 28. Qd3 {[%emt 0:02:06]} Nc6 {[%emt 0:01:01]} 29. Qd6+ {[%emt 0:01:33]} Qxd6 {[%emt 0:00:27]} 30. Rxd6 {[%emt 0:00:02]} Nb4 {[%emt 0:00:09]} 31. a3 {[%emt 0:00:15]} Na6 {[%emt 0:00:21]} 32. Rd8+ {[%emt 0:00:13]} Ke7 {[%emt 0:00:02]} 33. Ra8 {[%emt 0:00:11]} Nc5 {[%emt 0:00:08]} 34. Rxa7+ {[%emt 0:00:05]} Ke8 {[%emt 0:00:09]} 35. a4 {[%emt 0:00:26]} h6 {[%emt 0:00:58]} 36. a5 {[%emt 0:00:06]} bxa5 {[%emt 0:00:05]} 37. Rxa5 {[%emt 0:00:03]} Nd3 {[%emt 0:00:33]} 38. Ra8+ {[%emt 0:00:29]} Ke7 {[%emt 0:00:21]} 39. Ra7+ {[%emt 0:00:45]} Ke8 {[%emt 0:00:10]} 40. Kf1 {[%emt 0:00:00]} Ne4 {[%emt 0:00:00]} 41. f3 {[%emt 0:00:00]} Nec5 {[%emt 0:00:00]} 42. Ke2 {[%emt 0:00:00]} Ne5 {[%emt 0:00:00]} 43. f4 {[%emt 0:00:00]} Ned7 {[%emt 0:00:00]} 44. f5 {[%emt 0:00:00]} exf5 {[%emt 0:00:00]} 45. Nxf5 {[%emt 0:00:00]} Kf8 {[%emt 0:00:00]} 46. Ra8+ {[%emt 0:00:00]} 1-0

[Event "2nd Hersonissos Open 2018"]
[Site "Hersonissos"]
[Date "2018.06.20"]
[Round "5"]
[White "Fragiadakis, Emanouel"]
[Black "Saklampanakis, Dimitrios"]
[Result "1-0"]
[ECO "E08"]
[WhiteElo "1813"]
[BlackElo "1319"]
[Annotator "NA"]
[PlyCount "66"]
[EventDate "2018.06.16"]
[EventType "swiss"]
[EventCountry "GRE"]
[SourceTitle "playchess.com"]
[Source "ChessBase"]
[SourceQuality "1"]
[TimeControl "5400+30"]

1. d4 {[%emt 0:00:00]} d5 {[%emt 0:00:06]} 2. c4 {[%emt 0:00:00]} e6 {[%emt 0:00:06]} 3. Nf3 {[%emt 0:00:05]} Nf6 {[%emt 0:00:58]} 4. g3 {[%emt 0:00:03]} Be7 {[%emt 0:00:24]} 5. Bg2 {[%emt 0:00:05]} Nbd7 {[%emt 0:00:13]} 6. O-O {[%emt 0:00:07]} O-O {[%emt 0:00:19]} 7. Qc2 {[%emt 0:00:06]} b6 {[%emt 0:00:29]} 8. Rd1 {[%emt 0:00:08]} Bb7 {[%emt 0:00:54]} 9. b3 {[%emt 0:00:11]} Rc8 {[%emt 0:05:28]} 10. Nc3 {[%emt 0:00:44]} c5 {[%emt 0:01:57]} 11. Ne5 {[%emt 0:11:15]} Qc7 {[%emt 0:07:21]} 12. Nb5 {[%emt 0:04:07]} Qb8 {[%emt 0:02:51]} 13. Bf4 {[%emt 0:00:23]} Nxe5 {[%emt 0:16:31]} 14. Bxe5 {[%emt 0:00:08]} Qa8 {[%emt 0:01:20]} 15. Nc7 {[%emt 0:00:13]} Rxc7 {[%emt 0:03:29]} 16. Bxc7 {[%emt 0:00:05]} dxc4 {[%emt 0:03:55]} 17. Bxb7 {[%emt 0:04:17]} Qxb7 {[%emt 0:00:14]} 18. Bf4 {[%emt 0:00:33]} cxd4 {[%emt 0:11:02]} 19. Qxc4 {[%emt 0:02:06]} Bc5 {[%emt 0:03:55]} 20. b4 {[%emt 0:01:14]} Be7 {[%emt 0:02:54]} 21. Qxd4 {[%emt 0:11:30]} Nd5 {[%emt 0:04:29]} 22. e4 {[%emt 0:00:04]} Nxb4 {[%emt 0:04:54]} 23. Qd7 {[%emt 0:00:11]} Qxd7 {[%emt 0:02:56]} 24. Rxd7 {[%emt 0:00:38]} Bc5 {[%emt 0:01:02]} 25. Bd6 {[%emt 0:15:03]} Rc8 {[%emt 0:02:01]} 26. Bxc5 {[%emt 0:01:31]} bxc5 {[%emt 0:00:11]} 27. a3 {[%emt 0:04:34]} Nc2 {[%emt 0:01:51]} 28. Rc1 {[%emt 0:00:17]} Nd4 {[%emt 0:00:14]} 29. Rxd4 {[%emt 0:00:19]} e5 {[%emt 0:03:02]} 30. Rxc5 {[%emt 0:00:07]} Re8 {[%emt 0:03:03]} 31. Rdd5 {[%emt 0:02:03]} f6 {[%emt 0:00:54]} 32. Rc7 {[%emt 0:02:25]} Ra8 {[%emt 0:08:45]} 33. Rdd7 {[%emt 0:03:50]} g5 {[%emt 0:02:17]} 1-0

[Event "2nd Hersonissos Open 2018"]
[Site "Hersonissos"]
[Date "2018.06.20"]
[Round "5"]
[White "Kouvidis, Ioannis"]
[Black "Stefanov, Evtim"]
[Result "1-0"]
[ECO "C41"]
[WhiteElo "1730"]
[BlackElo "1959"]
[Annotator "NA"]
[PlyCount "61"]
[EventDate "2018.06.16"]
[EventType "swiss"]
[EventCountry "GRE"]
[SourceTitle "playchess.com"]
[Source "ChessBase"]
[SourceQuality "1"]
[TimeControl "5400+30"]

1. e4 {[%emt 0:00:00]} e5 {[%emt 0:10:03]} 2. Nf3 {[%emt 0:00:00]} d6 {[%emt 0:00:26]} 3. d4 {[%emt 0:00:00]} exd4 {[%emt 0:00:34]} 4. Qxd4 {[%emt 0:00:04]} Nf6 {[%emt 0:02:20]} 5. Nc3 {[%emt 0:01:36]} Be7 {[%emt 0:03:32]} 6. Bg5 {[%emt 0:04:05]} h6 {[%emt 0:01:40]} 7. Bh4 {[%emt 0:03:33]} O-O {[%emt 0:00:17]} 8. h3 {[%emt 0:00:59]} Nc6 {[%emt 0:01:19]} 9. Qe3 {[%emt 0:01:12]} Be6 {[%emt 0:11:55]} 10. O-O-O {[%emt 0:03:06]} Nd7 {[%emt 0:05:27]} 11. Bxe7 {[%emt 0:04:49]} Qxe7 {[%emt 0:00:12]} 12. g4 {[%emt 0:02:02]} a6 {[%emt 0:02:06]} 13. g5 {[%emt 0:04:55]} h5 {[%emt 0:00:54]} 14. Nh4 {[%emt 0:00:33]} g6 {[%emt 0:02:12]} 15. f4 {[%emt 0:07:03]} b5 {[%emt 0:10:20]} 16. Qd2 {[%emt 0:16:36]} b4 {[%emt 0:09:34]} 17. Nd5 {[%emt 0:00:44]} Qd8 {[%emt 0:01:39]} 18. f5 {[%emt 0:16:25]} Bxd5 {[%emt 0:02:01]} 19. exd5 {[%emt 0:02:17]} Nce5 {[%emt 0:01:21]} 20. Rg1 {[%emt 0:00:49]} a5 {[%emt 0:03:59]} 21. Be2 {[%emt 0:01:57]} Nc5 {[%emt 0:06:03]} 22. Bxh5 gxh5 {[%emt 0:01:43]} 23. Qe2 {[%emt 0:05:20]} Ng4 {[%emt 0:09:57]} 24. hxg4 {[%emt 0:07:54]} Qxg5+ {[%emt 0:05:58]} 25. Kb1 {[%emt 0:00:34]} Qxh4 {[%emt 0:00:24]} 26. Rh1 {[%emt 0:00:24]} Qf6 {[%emt 0:02:17]} 27. g5 {[%emt 0:00:29]} Qh8 {[%emt 0:03:57]} 28. Rxh5 {[%emt 0:03:03]} Qe5 {[%emt 0:00:20]} 29. Qxe5 {[%emt 0:00:23]} dxe5 {[%emt 0:00:12]} 30. Rdh1 {[%emt 0:00:04]} f6 {[%emt 0:00:25]} 31. g6 {[%emt 0:00:04]} 1-0